fUSD/lending_fUSD_20250426
["ID","MTS","AMOUNT","RATE_DAILY","PERIOD"]
[359041484,1745670166207,-400.0,0.00019984,2]
[359041485,1745670166230,-400.0,0.00019984,2]
[359041486,1745670166252,-500.0,0.00019984,2]
[359041487,1745670166274,-400.0,0.00019984,2]
[359041488,1745670166297,-500.0,0.00019984,2]
[359041489,1745670166322,-400.0,0.00019984,2]
[359041490,1745670166345,-500.0,0.00019984,2]
[359041491,1745670166366,-500.0,0.00019984,2]
[359041492,1745670166389,-500.0,0.00019984,2]
[359041493,1745670166411,-400.0,0.00019984,2]
[359041494,1745670166433,-500.0,0.00019984,2]
[359041495,1745670166455,-400.0,0.00019984,2]
[359041496,1745670166476,-500.0,0.00019984,2]
[359041497,1745670166498,-500.0,0.00019984,2]
[359041498,1745670166520,-505.57630559,0.00019984,2]
[359041499,1745670166542,-330.0,0.00019984,2]
[359041500,1745670166564,-500.0,0.00019984,2]
[359041501,1745670166586,-400.0,0.00019984,2]
[359041502,1745670166608,-400.0,0.00019984,2]
[359041503,1745670166629,-716.43,0.00019984,2]
[359041504,1745670166651,-400.0,0.00019984,2]
[359041505,1745670166673,-400.0,0.00019984,2]
[359041506,1745670166695,-1165.15,0.00019984,2]
[359041507,1745670166719,-500.0,0.00019984,2]
[359041508,1745670166741,-400.0,0.00019984,2]
[359041509,1745670166762,-493.31,0.00019984,2]
[359041510,1745670166785,-400.0,0.00019984,2]
[359041511,1745670166808,-400.0,0.00019984,2]
[359041512,1745670166832,-400.0,0.00019984,2]
[359041513,1745670166854,-400.0,0.00019984,2]
[359041514,1745670166877,-734.48,0.00019984,2]
[359041515,1745670166899,-400.0,0.00019984,2]
[359041516,1745670166921,-583.41,0.00019984,2]
[359041517,1745670166943,-400.0,0.00019984,2]
[359041518,1745670166967,-662.42,0.00019984,2]
[359041519,1745670166989,-400.0,0.00019984,2]
[359041520,1745670167010,-400.0,0.00019984,2]
[359041521,1745670167031,-400.0,0.00019984,2]
[359041522,1745670167053,-402.62,0.00019984,2]
[359041523,1745670167081,-400.0,0.00019984,2]
[359041524,1745670167106,-526.412863,0.00019984,2]
[359041525,1745670167132,-400.0,0.00019984,2]
[359041526,1745670167159,-500.0,0.00019984,2]
[359041527,1745670167181,-400.0,0.00019984,2]
[359041528,1745670167204,-3310.61,0.00019984,2]
[359041529,1745670167226,-400.0,0.00019984,2]
[359041530,1745670167250,-500.0,0.00019984,2]
[359041531,1745670167271,-400.0,0.00019984,2]
[359041532,1745670167293,-601.556447,0.00019984,2]
[359041533,1745670167315,-400.0,0.00019984,2]
[359041534,1745670167337,-400.0,0.00019984,2]
[359041535,1745670167359,-500.0,0.00019984,2]
[359041536,1745670167381,-500.0,0.00019984,2]
[359041537,1745670167405,-166.423983,0.00019984,2]
[359041538,1745670167428,-400.0,0.00019984,2]
[359041539,1745670167451,-586.74,0.00019984,2]
[359041540,1745670167473,-500.0,0.00019984,2]
[359041541,1745670167496,-400.0,0.00019984,2]
[359041542,1745670167533,-734.73,0.00019984,2]
[359041543,1745670167557,-500.0,0.00019984,2]
[359041544,1745670167580,-400.0,0.00019984,2]
[359041545,1745670167603,-400.0,0.00019984,2]
[359041546,1745670167625,-500.0,0.00019984,2]
[359041547,1745670167647,-400.0,0.00019984,2]
[359041548,1745670167673,-500.0,0.00019984,2]
[359041549,1745670167695,-846.99,0.00019984,2]
[359041550,1745670167721,-400.0,0.00019984,2]
[359041551,1745670167745,-501.83,0.00019984,2]
[359041552,1745670167768,-400.0,0.00019984,2]
[359041553,1745670168104,-589.82,0.00019984,2]
[359041554,1745670168147,-400.0,0.00019984,2]
[359041555,1745670168172,-400.0,0.00019984,2]
[359041556,1745670168194,-400.0,0.00019984,2]
[359041557,1745670168218,-400.0,0.00019984,2]
[359041558,1745670168240,-519.95197459,0.00019984,2]
[359041559,1745670168264,-400.0,0.00019984,2]
[359041560,1745670168286,-400.0,0.00019984,2]
[359041561,1745670168309,-400.0,0.00019984,2]
[359041562,1745670168332,-500.0,0.00019984,2]
[359041563,1745670168355,-1051.35,0.00019984,2]
[359041564,1745670168385,-3811.36,0.00019984,2]
[359041565,1745670168412,-400.0,0.00019984,2]
[359041566,1745670168436,-500.0,0.00019984,2]
[359041567,1745670168460,-529.91,0.00019984,2]
[359041568,1745670168486,-400.0,0.00019984,2]
[359041569,1745670168510,-469.08,0.00019984,2]
[359041570,1745670168534,-643.74,0.00019984,2]
[359041571,1745670168558,-400.0,0.00019984,2]
[359041572,1745670168581,-504.70218689,0.00019984,2]
[359041573,1745670168604,-182.89226889,0.00019984,2]
[359041574,1745670168629,-182.35493135,0.00019984,2]
[359041575,1745670168653,-500.0,0.00019984,2]
[359041576,1745670168677,-501.42,0.00019984,2]
[359041577,1745670168700,-400.0,0.00019984,2]
[359041578,1745670168722,-746.75,0.00019984,2]
[359041579,1745670168746,-570.48,0.00019984,2]
[359041580,1745670168768,-1000.0,0.00019984,2]
[359041581,1745670168791,-400.0,0.00019984,2]
[359041582,1745670168814,-400.0,0.00019984,2]
[359041583,1745670168838,-400.0,0.00019984,2]
[359041584,1745670168860,-716.16,0.00019984,2]
[359041585,1745670168889,-400.0,0.00019984,2]
[359041586,1745670168914,-500.0,0.00019984,2]
[359041587,1745670168937,-400.0,0.00019984,2]
[359041588,1745670168960,-400.0,0.00019984,2]
[359041589,1745670168984,-400.0,0.00019984,2]
[359041590,1745670169009,-400.0,0.00019984,2]
[359041591,1745670169033,-698.77,0.00019984,2]
[359041592,1745670169059,-799.06,0.00019984,2]
[359041593,1745670169085,-400.0,0.00019984,2]
[359041594,1745670169109,-400.0,0.00019984,2]
[359041595,1745670169133,-400.0,0.00019984,2]
[359041596,1745670169159,-400.0,0.00019984,2]
[359041597,1745670169183,-400.0,0.00019984,2]
[359041598,1745670169207,-400.0,0.00019984,2]
[359041599,1745670169232,-908.41,0.00019984,2]
[359041600,1745670169256,-400.0,0.00019984,2]
[359041601,1745670169280,-400.0,0.00019984,2]
[359041602,1745670169304,-400.0,0.00019984,2]
[359041603,1745670169328,-400.0,0.00019984,2]
[359041604,1745670169356,-400.0,0.00019984,2]
[359041605,1745670169381,-321.32684756,0.00019984,2]
[359041606,1745670169419,-400.0,0.00019984,2]
[359041607,1745670169448,-744.08,0.00019984,2]
[359041608,1745670169474,-400.0,0.00019984,2]
[359041609,1745670169500,-400.0,0.00019984,2]
[359041610,1745670169527,-887.48,0.00019984,2]
[359041611,1745670169552,-400.0,0.00019984,2]
[359041612,1745670169576,-400.0,0.00019984,2]
[359041613,1745670169601,-400.0,0.00019984,2]
[359041614,1745670169627,-686.58,0.00019984,2]
[359041615,1745670169653,-400.0,0.00019984,2]
[359041616,1745670169678,-400.0,0.00019984,2]
[359041617,1745670169703,-400.0,0.00019984,2]
[359041618,1745670169727,-500.0,0.00019984,2]
[359041619,1745670169751,-400.0,0.00019984,2]
[359041620,1745670169775,-400.0,0.00019984,2]
[359041621,1745670169801,-624.14,0.00019984,2]
[359041622,1745670169825,-293.62364312,0.00019984,2]
[359041623,1745670169849,-150.99,0.00019985,2]
[359041624,1745670169873,-181.10557323,0.00019985,2]
[359041625,1745670169903,-400.0,0.00019985,2]
[359041626,1745670169927,-803.49,0.00019985,2]
[359041627,1745670169952,-593.8,0.00019985,2]
[359041628,1745670170186,-723.32,0.00019985,2]
[359041629,1745670170212,-833.47,0.00019985,2]
[359041630,1745670170238,-580.62,0.00019985,2]
[359041631,1745670170262,-400.0,0.00019985,2]
[359041632,1745670170287,-400.0,0.00019985,2]
[359041633,1745670170311,-400.0,0.00019985,2]
[359041634,1745670170334,-875.61,0.00019985,2]
[359041635,1745670170358,-400.0,0.00019985,2]
[359041636,1745670170383,-562.14,0.00019985,2]
[359041637,1745670170408,-452.91,0.00019985,2]
[359041638,1745670170432,-400.0,0.00019985,2]
[359041639,1745670170459,-400.0,0.00019985,2]
[359041640,1745670170484,-400.0,0.00019985,2]
[359041641,1745670170511,-659.99,0.00019985,2]
[359041642,1745670170534,-400.0,0.00019985,2]
[359041643,1745670170559,-400.0,0.00019985,2]
[359041644,1745670170584,-400.0,0.00019985,2]
[359041645,1745670170608,-1371.11,0.00019985,2]
[359041646,1745670170634,-400.0,0.00019985,2]
[359041647,1745670170660,-400.0,0.00019985,2]
[359041648,1745670170684,-400.0,0.00019985,2]
[359041649,1745670170709,-1102.75,0.00019985,2]
[359041650,1745670170733,-400.0,0.00019985,2]
[359041651,1745670170756,-400.0,0.00019985,2]
[359041652,1745670170780,-400.0,0.00019985,2]
[359041653,1745670170803,-697.37,0.00019985,2]
[359041654,1745670170828,-1224.64,0.00019985,2]
[359041655,1745670170853,-400.0,0.00019985,2]
[359041656,1745670170877,-400.0,0.00019985,2]
[359041657,1745670170901,-400.0,0.00019985,2]
[359041658,1745670170927,-400.0,0.00019985,2]
[359041659,1745670170953,-400.0,0.00019985,2]
[359041660,1745670170976,-400.0,0.00019985,2]
[359041661,1745670171000,-1131.3,0.00019985,2]
[359041662,1745670171024,-975.84,0.00019985,2]
[359041663,1745670171047,-400.0,0.00019985,2]
[359041664,1745670171073,-655.16,0.00019985,2]
[359041665,1745670171098,-400.0,0.00019985,2]
[359041666,1745670171121,-400.0,0.00019985,2]
[359041667,1745670171148,-400.0,0.00019985,2]
[359041668,1745670171174,-762.3,0.00019985,2]
[359041669,1745670171198,-400.0,0.00019985,2]
[359041670,1745670171223,-521.12,0.00019985,2]
[359041671,1745670171247,-400.0,0.00019985,2]
[359041672,1745670171271,-400.0,0.00019985,2]
[359041673,1745670171295,-400.0,0.00019985,2]
[359041674,1745670171320,-400.0,0.00019985,2]
[359041675,1745670171344,-542.98,0.00019985,2]
[359041676,1745670171367,-400.0,0.00019985,2]
[359041677,1745670171389,-400.0,0.00019985,2]
[359041678,1745670171414,-826.77,0.00019985,2]
[359041679,1745670171437,-400.0,0.00019985,2]
[359041680,1745670171461,-639.73,0.00019985,2]
[359041681,1745670171483,-400.0,0.00019985,2]
[359041682,1745670171507,-400.0,0.00019985,2]
[359041683,1745670171530,-522.99,0.00019985,2]
[359041684,1745670171553,-400.0,0.00019985,2]
[359041685,1745670171575,-770.99,0.00019985,2]
[359041686,1745670171597,-467.35,0.00019985,2]
[359041687,1745670171620,-400.0,0.00019985,2]
[359041688,1745670171642,-400.0,0.00019985,2]
[359041689,1745670171666,-400.0,0.00019985,2]
[359041690,1745670171689,-626.63,0.00019985,2]
[359041691,1745670171712,-400.0,0.00019985,2]
[359041692,1745670171734,-500.0,0.00019985,2]
[359041693,1745670171757,-400.0,0.00019985,2]
[359041694,1745670171779,-400.0,0.00019985,2]
[359041695,1745670171802,-400.0,0.00019985,2]
[359041696,1745670171825,-400.0,0.00019985,2]
[359041697,1745670171847,-706.36,0.00019985,2]
[359041698,1745670171871,-400.0,0.00019985,2]
[359041699,1745670171895,-400.0,0.00019985,2]
[359041700,1745670171920,-400.0,0.00019985,2]
[359041701,1745670171942,-747.77,0.00019985,2]
[359041702,1745670171965,-2697.5,0.00019985,2]
[359041703,1745670171987,-400.0,0.00019985,2]
[359041704,1745670172011,-400.0,0.00019985,2]
[359041705,1745670172036,-400.0,0.00019985,2]
[359041706,1745670172325,-492.45,0.00019985,2]
[359041707,1745670172352,-670.96,0.00019985,2]
[359041708,1745670172376,-400.0,0.00019985,2]
[359041709,1745670172400,-1293.69,0.00019985,2]
[359041710,1745670172424,-483.93,0.00019985,2]
[359041711,1745670172448,-400.0,0.00019985,2]
[359041712,1745670172472,-554.08,0.00019985,2]
[359041713,1745670172496,-563.68,0.00019985,2]
[359041714,1745670172521,-400.0,0.00019985,2]
[359041715,1745670172546,-112351.06,0.00019985,2]
[359041716,1745670172569,-538.44,0.00019985,2]
[359041717,1745670172593,-538.44,0.00019985,2]
[359041718,1745670172616,-538.44,0.00019985,2]
[359041719,1745670172640,-538.44,0.00019985,2]
[359041720,1745670172663,-538.44,0.00019985,2]
[359041721,1745670172686,-538.44,0.00019985,2]
[359041722,1745670172709,-538.44,0.00019985,2]
[359041723,1745670172732,-400.0,0.00019985,2]
[359041724,1745670172756,-5681.49,0.00019985,2]
[359041725,1745670172778,-14044.16,0.00019985,2]
[359041726,1745670172803,-470.15,0.00019985,2]
[359041727,1745670172828,-400.0,0.00019985,2]
[359041728,1745670172853,-974.33,0.00019985,2]
[359041729,1745670172877,-400.0,0.00019985,2]
[359041730,1745670172898,-7231.53,0.00019985,2]
[359041731,1745670172923,-400.0,0.00019985,2]
[359041732,1745670172946,-611.68,0.00019985,2]
[359041733,1745670172968,-2050.75,0.00019985,2]
[359041734,1745670172992,-701.91,0.00019985,2]
[359041735,1745670173014,-2660.92,0.00019985,2]
[359041736,1745670173037,-605.85,0.00019985,2]
[359041737,1745670173059,-400.0,0.00019985,2]
[359041738,1745670173086,-481.45,0.00019985,2]
[359041739,1745670173110,-1052.76,0.00019985,2]
[359041740,1745670173133,-400.0,0.00019985,2]
[359041741,1745670173160,-832.61,0.00019985,2]
[359041742,1745670173182,-926.71,0.00019985,2]
[359041743,1745670173203,-710.37,0.00019985,2]
[359041744,1745670173225,-800.92,0.00019985,2]
[359041745,1745670173249,-400.0,0.00019985,2]
[359041746,1745670173272,-130977.7,0.00019985,2]
[359041747,1745670173293,-841.54,0.00019985,2]
[359041748,1745670173318,-500.0,0.00019985,2]
[359041749,1745670173341,-643.77,0.00019985,2]
[359041750,1745670173364,-599.06,0.00019985,2]
[359041751,1745670173387,-781.1,0.00019985,2]
[359041752,1745670173410,-400.0,0.00019985,2]
[359041753,1745670173434,-861.01,0.00019985,2]
[359041754,1745670173456,-669.33,0.00019985,2]
[359041755,1745670173479,-814.26,0.00019985,2]
[359041756,1745670173502,-774.86,0.00019985,2]
[359041757,1745670173526,-853.75,0.00019985,2]
[359041758,1745670173551,-748.1,0.00019985,2]
[359041759,1745670173574,-555.62,0.00019985,2]
[359041760,1745670173596,-400.0,0.00019985,2]
[359041761,1745670173618,-1005.37,0.00019985,2]
[359041762,1745670173641,-403.82,0.00019985,2]
[359041763,1745670173663,-500.0,0.00019985,2]
[359041764,1745670173686,-465.52,0.00019985,2]
[359041765,1745670173709,-400.0,0.00019985,2]
[359041766,1745670173733,-400.0,0.00019985,2]
[359041767,1745670173757,-820.44,0.00019985,2]
[359041768,1745670173783,-642.44326523,0.00019985,2]
[359041769,1745670173809,-732.93,0.00019985,2]
[359041770,1745670173832,-500.0,0.00019985,2]
[359041771,1745670173854,-379.28087059,0.00019985,2]
[359041772,1745670173880,-828.02,0.00019985,2]
[359041773,1745670173904,-828.02,0.00019985,2]
[359041774,1745670173928,-828.02,0.00019985,2]
[359041775,1745670173953,-828.02,0.00019985,2]
[359041776,1745670173977,-1298.85,0.00019985,2]
[359041777,1745670174002,-828.02,0.00019985,2]
[359041778,1745670174026,-828.02,0.00019985,2]
[359041779,1745670174049,-828.02,0.00019985,2]
[359041780,1745670174280,-594.41,0.00019985,2]
[359041781,1745670174304,-676.79,0.00019985,2]
[359041782,1745670174328,-493.91,0.00019985,2]
[359041783,1745670174352,-400.0,0.00019985,2]
[359041784,1745670174375,-481.46,0.00019985,2]
[359041785,1745670174400,-1745.97,0.00019985,2]
[359041786,1745670174424,-400.0,0.00019985,2]
[359041787,1745670174447,-471.35,0.00019985,2]
[359041788,1745670174469,-929.61,0.00019985,2]
[359041789,1745670174496,-1138.14,0.00019985,2]
[359041790,1745670174521,-423.21,0.00019985,2]
[359041791,1745670174546,-1395.99,0.00019985,2]
[359041792,1745670174568,-585.14,0.00019985,2]
[359041793,1745670174592,-691.82,0.00019985,2]
[359041794,1745670174615,-629.738129,0.00019985,2]
[359041795,1745670174638,-1296.0,0.00019985,2]
[359041796,1745670174661,-327572.95567469,0.00019986,2]
[359041797,1745670175399,-1066539.19074587,0.00019986,2]
[359041798,1745670175422,-904.80168282,0.00019986,2]
[359041799,1745670175444,-1491.0985381,0.00019986,2]
[359041800,1745670175467,-181.422738,0.00019986,2]
[359041801,1745670175490,-771.1082004,0.00019986,2]
[359041802,1745670175512,-151.0,0.00019986,2]
[359041803,1745670175533,-15313.706034,0.00019986,2]
[359041804,1745670175555,-11821.2831678,0.00019986,2]
[359041805,1745670175823,-8328.8603017,0.00019986,2]
[359041806,1745670175848,-151.0,0.00019986,2]
[359041807,1745670175870,-151.0,0.00019986,2]
[359041808,1745670175894,-151.0,0.00019986,2]
[359041809,1745670175921,-207.069999,0.00019986,2]
[359041810,1745670175944,-207.069999,0.00019986,2]
[359041811,1745670175969,-207.069999,0.00019986,2]
[359041812,1745670175991,-151.0,0.00019986,2]
[359041813,1745670176014,-207.069999,0.00019986,2]
[359041814,1745670176037,-151.0,0.00019986,2]
[359041815,1745670176062,-151.0,0.00019986,2]
[359041816,1745670176091,-151.0,0.00019986,2]
[359041817,1745670176114,-151.0,0.00019986,2]
[359041818,1745670176137,-194.009281,0.00019986,2]
[359041819,1745670176162,-156.646834,0.00019986,2]
[359041820,1745670176184,-151.0,0.00019986,2]
[359041821,1745670176207,-215.514978,0.00019986,2]
[359041822,1745670176230,-44603.27583564,0.00019986,2]
[359041823,1745670176564,-144513.97618446,0.00019986,2]
[359041824,1745670176588,-170474.9760353,0.00019986,2]
[359041825,1745670176611,-151832.7000505,0.00019986,2]
[359041826,1745670176634,-155.922673,0.00019986,2]
[359041827,1745670176656,-299.45988,0.00019986,2]
[359041828,1745670176678,-151.0,0.00019986,2]
[359041829,1745670176701,-294.062438,0.00019986,2]
[359041830,1745670176724,-4173.3253838,0.00019986,2]
[359041831,1745670176748,-151.0,0.00019986,2]
[359041832,1745670176771,-151.0,0.00019986,2]
[359041833,1745670176793,-11243.3208339,0.00019986,2]
[359041834,1745670176817,-1100.987267,0.00019986,2]
[359041835,1745670176840,-1100.987267,0.00019986,2]
[359041836,1745670176864,-1100.987267,0.00019986,2]
[359041837,1745670176898,-1100.987267,0.00019986,2]
[359041838,1745670176923,-1100.987267,0.00019986,2]
[359041839,1745670176947,-1100.987267,0.00019986,2]
[359041840,1745670176971,-218.501626,0.00019986,2]
[359041841,1745670176996,-218.501626,0.00019986,2]
[359041842,1745670177031,-267.719604,0.00019986,2]
[359041843,1745670177053,-218.501626,0.00019986,2]
[359041844,1745670177078,-267.719604,0.00019986,2]
[359041845,1745670177101,-218.501626,0.00019986,2]
[359041846,1745670177124,-218.501626,0.00019986,2]
[359041847,1745670177147,-218.501626,0.00019986,2]
[359041848,1745670177171,-1147.885923,0.00019986,2]
[359041849,1745670177193,-267.719604,0.00019986,2]
[359041850,1745670177214,-1147.885923,0.00019986,2]
[359041851,1745670177238,-267.719604,0.00019986,2]
[359041852,1745670177261,-1147.885923,0.00019986,2]
[359041853,1745670177284,-1147.885923,0.00019986,2]
[359041854,1745670177306,-1147.885923,0.00019986,2]
[359041855,1745670177329,-1147.885923,0.00019986,2]
[359041856,1745670177352,-152.819799,0.00019986,2]
[359041857,1745670177375,-151.0,0.00019986,2]
[359041858,1745670177398,-151.0,0.00019986,2]
[359041859,1745670177421,-158.401847,0.00019986,2]
[359041860,1745670177444,-300.0,0.00019997,2]
[359041861,1745670177466,-500.0,0.00019997,2]
[359041862,1745670177489,-300.0,0.00019997,2]
[359041863,1745670177512,-300.0,0.00019997,2]
[359041864,1745670177534,-538.44,0.00019997,2]
[359041865,1745670177556,-538.44,0.00019997,2]
[359041866,1745670177578,-538.44,0.00019997,2]
[359041867,1745670177601,-828.02,0.00019997,2]
[359041868,1745670177623,-828.02,0.00019997,2]
[359041869,1745670177644,-828.02,0.00019997,2]
[359041870,1745670177668,-920.0,0.00019997,2]
[359041871,1745670177690,-1336.0,0.00019997,2]
[359041872,1745670177711,-796.0,0.00019997,2]
[359041873,1745670177734,-1287.0,0.00019997,2]
[359041874,1745670177757,-548.0,0.00019997,2]
[359041875,1745670177780,-911.0,0.00019997,2]
[359041876,1745670177801,-579.0,0.00019997,2]
[359041877,1745670177827,-2063.0,0.00019997,2]
[359041878,1745670177850,-1446.0,0.00019997,2]
[359041879,1745670177872,-877.0,0.00019997,2]
[359041880,1745670177893,-6193.0,0.00019997,2]
[359041881,1745670177918,-201.859,0.00019997,2]
[359041882,1745670177940,-257.141,0.00019997,2]
[359041883,1745670177961,-3991.0,0.00019997,2]
[359041884,1745670177983,-1135.0,0.00019997,2]
[359041885,1745670178005,-356.32377804,0.00019997,2]
[359041886,1745670178027,-151.0,0.00019998,2]
[359041887,1745670178049,-156.34320295,0.00019998,2]
[359041888,1745670178073,-151.0,0.00019998,2]
[359041889,1745670178096,-151.0,0.00019998,2]
[359041890,1745670178119,-151.0,0.00019998,2]
[359041891,1745670178142,-179.49834234,0.00019998,2]
[359041892,1745670178168,-652.6,0.00019998,2]
[359041893,1745670178190,-151.0,0.00019998,2]
[359041894,1745670178215,-336.44920315,0.00019998,2]
[359041895,1745670178239,-400.0,0.00019998,2]
[359041896,1745670178262,-500.0,0.00019998,2]
[359041897,1745670178286,-400.0,0.00019998,2]
[359041898,1745670178308,-400.0,0.00019998,2]
[359041899,1745670178330,-617.45,0.00019998,2]
[359041900,1745670178353,-400.0,0.00019998,2]
[359041901,1745670178376,-400.0,0.00019998,2]
[359041902,1745670178400,-400.0,0.00019998,2]
[359041903,1745670178426,-557.26,0.00019998,2]
[359041904,1745670178456,-861.38,0.00019998,2]
[359041905,1745670178489,-400.0,0.00019998,2]
[359041906,1745670178511,-400.0,0.00019998,2]
[359041907,1745670178534,-400.0,0.00019998,2]
[359041908,1745670178557,-400.0,0.00019998,2]
[359041909,1745670178579,-400.0,0.00019998,2]
[359041910,1745670178602,-533.75,0.00019998,2]
[359041911,1745670178635,-400.0,0.00019998,2]
[359041912,1745670178674,-400.0,0.00019998,2]
[359041913,1745670178696,-820.75,0.00019998,2]
[359041914,1745670178717,-400.0,0.00019998,2]
[359041915,1745670178739,-400.0,0.00019998,2]
[359041916,1745670178760,-400.0,0.00019998,2]
[359041917,1745670178784,-400.0,0.00019998,2]
[359041918,1745670178807,-482.68,0.00019998,2]
[359041919,1745670178830,-871.92,0.00019998,2]
[359041920,1745670178855,-500.0,0.00019998,2]
[359041921,1745670178879,-400.0,0.00019998,2]
[359041922,1745670178902,-400.0,0.00019998,2]
[359041923,1745670178925,-289.85545901,0.00019998,2]
[359041924,1745670178946,-400.0,0.00019998,2]
[359041925,1745670178968,-452.84,0.00019998,2]
[359041926,1745670178989,-400.0,0.00019998,2]
[359041927,1745670179011,-400.0,0.00019998,2]
[359041928,1745670179032,-400.0,0.00019998,2]
[359041929,1745670179053,-400.0,0.00019998,2]
[359041930,1745670179079,-692.04,0.00019998,2]
[359041931,1745670179100,-400.0,0.00019998,2]
[359041932,1745670179121,-337.56692072,0.00019998,2]
[359041933,1745670179143,-400.0,0.00019998,2]
[359041934,1745670179167,-400.0,0.00019998,2]
[359041935,1745670179189,-400.0,0.00019998,2]
[359041936,1745670179209,-400.0,0.00019998,2]
[359041937,1745670179231,-400.0,0.00019998,2]
[359041938,1745670179254,-501.42725082,0.00019998,2]
[359041939,1745670179277,-500.0,0.00019998,2]
[359041940,1745670179298,-400.0,0.00019998,2]
[359041941,1745670179321,-507.44276826,0.00019998,2]
[359041942,1745670179579,-400.0,0.00019998,2]
[359041943,1745670179604,-577.49,0.00019998,2]
[359041944,1745670179627,-400.0,0.00019998,2]
[359041945,1745670179650,-520.63,0.00019998,2]
[359041946,1745670179675,-510.8509464,0.00019998,2]
[359041947,1745670179697,-400.0,0.00019998,2]
[359041948,1745670179719,-400.0,0.00019998,2]
[359041949,1745670179742,-515.52386611,0.00019998,2]
[359041950,1745670179765,-400.0,0.00019998,2]
[359041951,1745670179788,-595.41,0.00019998,2]
[359041952,1745670179810,-400.0,0.00019998,2]
[359041953,1745670179835,-500.0,0.00019998,2]
[359041954,1745670179858,-400.0,0.00019998,2]
[359041955,1745670179882,-400.0,0.00019998,2]
[359041956,1745670179905,-400.0,0.00019998,2]
[359041957,1745670179929,-400.0,0.00019998,2]
[359041958,1745670179952,-400.0,0.00019998,2]
[359041959,1745670179975,-400.0,0.00019998,2]
[359041960,1745670179997,-400.0,0.00019998,2]
[359041961,1745670180021,-400.0,0.00019998,2]
[359041962,1745670180045,-400.0,0.00019998,2]
[359041963,1745670180072,-400.0,0.00019998,2]
[359041964,1745670180095,-501.9982147,0.00019998,2]
[359041965,1745670180119,-467.95,0.00019998,2]
[359041966,1745670180144,-937.85,0.00019998,2]
[359041967,1745670180169,-446.72,0.00019998,2]
[359041968,1745670180193,-400.0,0.00019998,2]
[359041969,1745670180216,-400.0,0.00019998,2]
[359041970,1745670180242,-400.0,0.00019998,2]
[359041971,1745670180265,-400.0,0.00019998,2]
[359041972,1745670180288,-400.0,0.00019998,2]
[359041973,1745670180311,-400.0,0.00019998,2]
[359041974,1745670180334,-520.48143566,0.00019998,2]
[359041975,1745670180358,-400.0,0.00019998,2]
[359041976,1745670180380,-400.0,0.00019998,2]
[359041977,1745670180403,-400.0,0.00019998,2]
[359041978,1745670180427,-400.0,0.00019998,2]
[359041979,1745670180450,-400.0,0.00019998,2]
[359041980,1745670180473,-400.0,0.00019998,2]
[359041981,1745670180495,-151.0,0.00019998,2]
[359041982,1745670180518,-151.0,0.00019998,2]
[359041983,1745670180540,-400.0,0.00019998,2]